bitfinex-derivatives/quotes_ETHF0:USTF0_20250606
["timestamp","ask_amount","ask_price","bid_price","bid_amount"]
[1749202196007,0.87904351,2475.0,2474.9,0.0060584]
[1749202197112,0.87904351,2475.0,2474.9,0.8137984]
[1749202198309,0.07133351,2475.0,2474.9,0.8137984]
[1749202198618,0.87904351,2475.0,2474.9,0.8137984]
[1749202200312,0.07133351,2475.0,2474.9,0.8137984]
[1749202200511,0.87904351,2475.0,2474.9,0.8137984]
[1749202200712,0.07133351,2475.0,2474.9,0.8137984]
[1749202201013,0.07133351,2475.0,2474.9,14.7213254]
[1749202201209,0.07133351,2475.0,2474.9,13.1280984]
[1749202201413,0.07133351,2475.0,2474.9,15.51485015]
[1749202201614,0.07133351,2475.0,2474.9,13.1280984]
[1749202201809,0.0060584,2475.4,2475.3,0.80761]
[1749202202014,0.0060584,2475.4,2475.3,2.40578112]
[1749202202604,0.0060584,2475.4,2475.3,2.00601577]
[1749202203017,0.0060584,2475.4,2475.2,2.40579112]
[1749202203213,0.0060584,2475.4,2475.0,1.59817112]
[1749202203214,2.01907,2475.3,2475.0,1.59817112]
[1749202203413,0.80771,2475.0,2474.9,2.41196952]
[1749202203718,0.80771,2475.0,2474.9,0.0060584]
[1749202204019,0.87904351,2475.0,2474.9,0.8137984]
[1749202204717,0.07133351,2475.0,2474.9,0.8137984]
[1749202213331,0.07133351,2475.0,2474.9,3.72646952]
[1749202213525,0.07133351,2475.0,2474.9,2.1282984]
[1749202214025,0.07133351,2475.0,2474.9,3.7271998]
[1749202214425,0.07133351,2475.0,2474.9,2.4126998]
[1749202218229,0.07133351,2475.0,2474.9,0.8137984]
[1749202228238,0.07133351,2475.0,2474.9,2.4126998]
[1749202230834,2.23865351,2475.0,2474.9,1.6049598]
[1749202231036,2.23865351,2475.0,2474.9,0.8138184]
[1749202232141,0.07133351,2475.0,2474.9,0.8138184]
[1749202232342,19.31233351,2475.0,2474.9,0.8138184]
[1749202233843,20.12006351,2475.0,2474.9,0.8138184]
[1749202234641,21.46396351,2475.0,2474.9,0.8138184]
[1749202235143,20.65623351,2475.0,2474.9,0.8138184]
[1749202235637,21.46296351,2475.0,2474.9,0.0060584]
[1749202235838,26.46296351,2475.0,2474.9,0.0060584]
[1749202238341,0.80796,2474.4,2474.2,0.80797]
[1749202238650,4.01576,2474.4,2474.2,0.80797]
[1749202238842,0.6511,2474.3,2474.0,1.5989014]
[1749202239146,4.01583,2474.1,2473.8,2.2631014]
[1749202239352,4.01583,2474.1,2473.9,0.80808]
[1749202239651,0.80807,2474.0,2473.8,0.80812]
[1749202239843,0.8081,2473.9,2473.7,0.80815]
[1749202240044,3.2078,2473.8,2473.7,0.80815]
[1749202240244,3.2078,2473.8,2473.6,2.4070914]
[1749202240452,3.2078,2473.8,2473.7,0.80816]
[1749202241050,4.01593,2473.8,2473.7,0.80816]
[1749202241251,3.2078,2473.8,2473.7,0.80816]
[1749202241950,4.01593,2473.8,2473.7,0.80816]
[1749202242156,3.2078,2473.8,2473.7,0.80816]
[1749202243750,0.80818,2473.6,2473.4,0.6671]
[1749202243945,0.80813,2473.7,2473.6,0.80814]
[1749202244150,3.8792,2473.8,2473.7,0.80812]
[1749202244551,3.2078,2473.8,2473.7,0.80812]
[1749202244748,3.2078,2473.8,2473.4,3.96074]
[1749202244749,0.80813,2473.7,2473.6,0.80813]
[1749202245956,0.80819,2473.5,2473.4,1.47528]
[1749202246756,0.80816,2473.7,2473.6,0.80813]
[1749202247254,0.80819,2473.5,2473.4,1.47529]
[1749202247551,5.22812,2473.8,2473.4,1.47529]
[1749202247750,0.80813,2473.7,2473.6,0.80813]
[1749202248452,4.01591,2473.8,2473.7,0.80813]
[1749202249851,3.2078,2473.8,2473.7,0.80813]
[1749202250756,3.2078,2473.8,2473.7,1.50403]
[1749202254054,4.01592,2473.8,2473.7,0.80813]
[1749202254248,3.2078,2473.8,2473.7,0.80813]
[1749202255056,4.01592,2473.8,2473.7,0.80813]
[1749202255460,3.2078,2473.8,2473.7,0.80813]
[1749202256564,0.0060584,2474.1,2473.7,0.80813]
[1749202256565,0.0060584,2474.1,2474.0,0.80802]
[1749202257058,3.2078,2474.5,2474.4,0.80789]
[1749202257250,1.3722,2474.8,2474.4,0.80789]
[1749202257454,1.3722,2474.8,2474.7,0.8078]
[1749202258055,0.6835,2474.8,2474.7,0.8078]
[1749202260255,0.6835,2474.8,2474.5,0.0060584]
[1749202260556,0.6835,2474.8,2474.7,0.8078]
[1749202261263,0.80781,2474.7,2474.5,0.8139084]
[1749202261458,0.80784,2474.6,2474.5,0.0060584]
[1749202261954,1.48124,2474.6,2474.5,0.0060584]
[1749202262966,6.48124,2474.6,2474.5,0.0060584]
[1749202265354,1.48124,2474.6,2474.5,0.0060584]
[1749202266158,0.80799,2474.3,2473.9,0.6546]
[1749202266361,3.8519,2474.2,2473.9,0.6546]
[1749202266555,4.65992,2474.2,2473.9,0.6546]
[1749202266753,3.8519,2474.2,2473.9,0.6546]
[1749202266958,0.80807,2474.0,2473.8,0.6388]
[1749202267156,1.2745,2474.1,2473.8,0.6388]
[1749202267360,0.80804,2474.1,2473.8,0.6388]
[1749202267957,0.80811,2473.9,2473.8,0.6388]
[1749202268358,3.28752,2474.1,2473.6,5.8507]
[1749202268558,0.80814,2473.8,2473.6,6.6589]
[1749202268760,0.80814,2473.8,2473.5,7.6191214]
[1749202268958,0.80814,2473.8,2473.5,8.2578214]
[1749202269359,0.80814,2473.8,2473.5,7.4496014]
[1749202269568,0.80814,2473.8,2473.5,8.2578114]
[1749202269758,0.80815,2473.8,2473.6,0.8082]
[1749202270259,0.8081,2473.8,2473.6,0.80814]
[1749202270567,0.80811,2473.8,2473.6,0.80815]
[1749202270766,2.02007,2474.0,2473.5,8.7994014]
[1749202271064,0.80812,2473.7,2473.6,0.80815]
[1749202271264,0.80811,2473.8,2473.6,0.80815]
[1749202271469,2.02008,2474.0,2473.6,0.80815]
[1749202271666,0.80813,2473.7,2473.5,9.6075614]
[1749202271865,0.80811,2473.8,2473.6,0.80814]
[1749202272363,2.02008,2474.0,2473.5,9.6075814]
[1749202272571,0.80814,2473.7,2473.5,8.00868]
[1749202273169,0.80814,2473.7,2473.5,2.79668]
[1749202273470,0.80814,2473.7,2473.6,0.80817]
[1749202273665,3.31838,2474.0,2473.5,1.44688]
[1749202273863,2.02037,2473.7,2473.4,10.6963014]
[1749202274066,3.2078,2473.9,2473.4,4.8067014]
[1749202274067,0.6439,2473.6,2473.4,4.8067014]
[1749202274266,0.0060584,2473.7,2473.5,1.48037]
[1749202274462,0.80817,2473.6,2473.5,1.4804]
[1749202274770,0.80817,2473.6,2473.5,0.6722]
[1749202275168,0.80817,2473.6,2473.2,5.8616]
[1749202275169,0.80827,2473.3,2473.2,2.2485014]
[1749202275367,0.80827,2473.3,2473.2,0.6496]
[1749202275674,0.80824,2473.4,2473.2,1.45788]
[1749202275875,0.6898,2473.5,2473.3,0.80827]
[1749202275876,1.49802,2473.5,2473.3,0.80827]
[1749202276377,0.80823,2473.4,2473.3,1.19980519]
[1749202276567,0.80823,2473.4,2473.3,2.00807519]
[1749202277071,1.49802,2473.5,2473.3,1.19980519]
[1749202277272,1.49802,2473.5,2473.3,2.00804519]
[1749202277467,0.80823,2473.4,2473.3,2.00804519]
[1749202277667,0.6898,2473.5,2473.3,2.00804519]
[1749202277869,1.49801,2473.5,2473.4,0.80824]
[1749202278061,0.6898,2473.5,2473.3,2.00804519]
[1749202278268,0.80824,2473.4,2473.3,2.00804519]
[1749202278472,0.6898,2473.5,2473.3,1.19980519]
[1749202278667,0.80824,2473.4,2473.3,1.19980519]
[1749202278866,0.80824,2473.4,2473.3,2.00807519]
[1749202279268,2.78591,2473.5,2473.4,0.80824]
[1749202279974,2.78591,2473.5,2473.3,2.00804519]
[1749202280175,0.80824,2473.4,2473.3,2.00804519]
[1749202280477,0.87957351,2473.4,2473.3,1.19980519]
[1749202280674,0.87959351,2473.4,2473.3,0.80827]
[1749202280877,0.87959351,2473.4,2473.2,1.19980519]
[1749202281174,0.87959351,2473.4,2473.3,0.80827]
[1749202281776,0.87959351,2473.4,2473.2,0.80828]
[1749202281978,0.80827,2473.3,2473.1,5.85201519]
[1749202282176,0.80828,2473.3,2473.2,0.8083]
[1749202282875,0.80827,2473.3,2473.2,0.8083]
[1749202283269,0.80827,2473.3,2473.1,1.44441]
[1749202283672,0.07133351,2473.4,2473.2,0.8083]
[1749202284069,0.80827,2473.3,2473.2,0.80829]
[1749202284377,0.87959351,2473.4,2473.2,0.80829]
[1749202284576,0.07133351,2473.4,2473.3,0.80827]
[1749202284770,0.07133351,2473.4,2473.1,0.6361]
[1749202284977,0.07133351,2473.4,2473.3,0.80827]
[1749202285176,0.87956351,2473.4,2473.3,0.80827]
[1749202285577,0.87956351,2473.4,2473.2,0.8083]
[1749202285774,0.07133351,2473.4,2473.3,0.80827]
[1749202285975,0.07133351,2473.4,2473.3,3.34177519]
[1749202288284,0.07133351,2473.4,2473.3,2.14197]
[1749202288587,0.07133351,2473.4,2473.3,3.7408714]
[1749202288778,0.07133351,2473.4,2473.3,4.52872175]
[1749202289478,0.07133351,2473.4,2473.3,2.14197]
[1749202290887,0.07133351,2473.4,2473.3,8.94315718]
[1749202291381,0.07133351,2473.4,2473.3,2.40745718]
[1749202291589,0.87956351,2473.4,2473.3,0.80827]
[1749202291887,0.80827,2473.3,2473.2,2.00802013]
[1749202292079,0.87958351,2473.4,2473.3,0.80827]
[1749202292683,0.87958351,2473.4,2473.3,2.00801013]
[1749202293996,0.07133351,2473.4,2473.3,2.00801013]
[1749202294283,0.07133351,2473.4,2473.3,0.80827]
[1749202294489,0.07133351,2473.4,2473.3,2.00877932]
[1749202294989,0.87957351,2473.4,2473.3,2.00877932]
[1749202295289,0.07133351,2473.4,2473.3,2.00877932]
[1749202295485,0.87957351,2473.4,2473.3,2.00877932]
[1749202295689,0.07133351,2473.4,2473.3,2.00877932]
[1749202295889,0.87957351,2473.4,2473.3,1.20050932]
[1749202296185,2.17787351,2473.4,2473.3,2.00877932]
[1749202296389,0.87957351,2473.4,2473.3,2.00877932]
[1749202299290,0.87957351,2473.4,2473.3,0.80827]
[1749202299492,0.87957351,2473.4,2473.3,2.01005023]
[1749202299790,0.87957351,2473.4,2473.3,1.20178023]
[1749202300886,0.80827,2473.3,2473.2,1.20178023]
[1749202301094,0.8083,2473.2,2473.1,1.20178023]
[1749202301286,0.80833,2473.1,2473.0,1.20178023]
[1749202301586,2.17483,2473.1,2473.0,1.20178023]
[1749202302179,0.6721,2473.1,2473.0,2.01015023]
[1749202302389,1.55169351,2473.4,2473.0,3.19512175]
[1749202302692,1.55169351,2473.4,2473.2,2.41082037]
[1749202302693,0.80827,2473.3,2473.2,2.41082037]
[1749202303394,0.74343351,2473.4,2473.2,1.60254037]
[1749202303691,0.80827,2473.3,2473.2,2.41082037]
[1749202304592,0.0060584,2473.7,2473.3,0.80827]
[1749202304887,0.6516,2474.8,2474.7,0.80781]
[1749202305087,0.80766,2475.2,2474.9,0.80772]
[1749202305287,0.6516,2475.1,2474.6,4.40857571]
[1749202305486,0.6516,2475.1,2474.7,2.6369]
[1749202305683,0.6516,2475.1,2474.9,1.20077571]
[1749202305884,0.6576584,2475.1,2474.8,1.20077571]
[1749202306092,0.80778,2474.8,2474.7,0.0060584]
[1749202306291,20.01778,2474.8,2474.7,0.0060584]
[1749202306486,20.01778,2474.8,2474.1,1.20077571]
[1749202306487,2.01962,2474.6,2474.1,1.20077571]
[1749202306690,0.80796,2474.3,2474.1,1.20077571]
[1749202307097,0.80797,2474.2,2474.1,1.20077571]
[1749202307397,0.808,2474.1,2473.8,1.20077571]
[1749202307596,1.3479,2474.0,2473.8,1.20077571]
[1749202307892,2.04,2474.0,2473.8,2.00886571]
[1749202308088,2.04,2474.0,2473.8,1.20077571]
[1749202308293,2.04,2474.0,2473.8,2.00887571]
[1749202309097,2.04,2474.0,2473.8,1.20077571]
[1749202309292,2.04,2474.0,2473.8,2.00887571]
[1749202309794,2.04,2474.0,2473.9,0.80807]
[1749202310197,2.84805,2474.0,2473.7,1.20077571]
[1749202310390,2.84805,2474.0,2473.5,1.60103428]
[1749202310391,0.80808,2473.9,2473.6,2.00892571]
[1749202310590,1.2759,2473.8,2473.6,2.00892571]
[1749202310793,1.2759,2473.8,2473.7,0.80813]
[1749202311098,1.2759,2473.8,2473.7,2.00890571]
[1749202311295,1.2759,2473.8,2473.7,0.80813]
[1749202312098,1.2759,2473.8,2473.4,1.20077571]
[1749202312292,6.01016,2473.7,2473.4,2.00900571]
[1749202312598,1.2759,2473.6,2473.4,0.80823]
[1749202312797,1.9253,2473.6,2473.2,1.20077571]
[1749202312985,1.9253,2473.6,2473.3,0.80825]
[1749202312986,0.6566,2473.5,2473.3,0.80825]
[1749202313705,2.8159,2473.5,2473.2,1.20077571]
[1749202314004,2.0077,2473.5,2473.2,1.20077571]
[1749202314387,0.6566,2473.5,2473.3,1.20077571]
[1749202314594,1.46481,2473.5,2473.3,1.20077571]
[1749202315397,0.80824,2473.4,2473.3,1.20077571]
[1749202315698,1.46482,2473.5,2473.3,1.20077571]
[1749202316602,0.80824,2473.4,2473.3,1.20077571]
[1749202318102,0.80824,2473.4,2473.2,4.40857571]
[1749202318295,0.80824,2473.4,2473.3,1.20077571]
[1749202319000,0.80824,2473.4,2473.2,4.40857571]
[1749202319203,0.80824,2473.4,2473.3,1.20077571]
[1749202319397,0.0060584,2473.8,2473.7,0.80814]
[1749202319606,0.80793,2474.4,2473.7,11.60749143]
[1749202319897,1.2938,2474.6,2474.2,4.40602949]
[1749202320102,1.2938,2474.6,2474.2,5.21398949]
[1749202320296,0.80792,2474.4,2474.2,4.40602949]
[1749202320700,0.80794,2474.3,2474.2,3.2078]
[1749202321005,0.0060584,2474.5,2474.2,3.2078]
[1749202321206,0.0060584,2474.5,2474.4,0.80791]
[1749202322202,0.0060584,2474.5,2474.4,3.77774932]
[1749202322505,0.0060584,2474.5,2474.4,3.37605253]
[1749202323301,0.0060584,2474.5,2474.4,3.37605593]
[1749202323693,0.0060584,2474.5,2474.4,2.56814593]
[1749202323894,0.80791,2474.4,2474.3,1.19594593]
[1749202324092,0.8139584,2474.5,2474.3,2.00388593]
[1749202324295,0.8139584,2474.5,2474.3,3.37608593]
[1749202324696,0.80791,2474.4,2474.3,2.56814593]
[1749202324895,0.8139584,2474.5,2474.3,2.18014]
[1749202325294,0.80791,2474.4,2474.3,1.3722]
[1749202325497,0.80791,2474.4,2474.3,2.18014]
[1749202325805,0.8139484,2474.5,2474.3,2.18014]
[1749202326301,0.80794,2474.3,2474.2,3.2078]
[1749202326605,0.80797,2474.2,2474.1,0.0060584]
[1749202326798,7.89937,2474.2,2474.1,0.0060584]
[1749202328103,5.99697,2474.2,2474.1,0.0060584]
[1749202328302,0.71289191,2474.5,2474.2,0.80795]
[1749202328497,5.189,2474.4,2474.1,0.0060584]
[1749202328701,0.80797,2474.2,2474.1,0.0060584]
[1749202328901,8.3968,2474.4,2474.1,0.8140484]
[1749202329206,0.80795,2474.3,2474.1,0.8140484]
[1749202329405,9.20473,2474.4,2474.1,0.8140484]
[1749202329604,3.2078,2474.4,2474.3,0.80794]
[1749202330400,3.2078,2474.4,2474.3,2.11384]
[1749202330906,3.2078,2474.4,2474.3,1.3059]
[1749202331093,0.07739191,2474.5,2474.3,4.5137]
[1749202331406,0.07739191,2474.5,2474.2,1.2856]
[1749202331704,0.80792,2474.4,2474.2,2.09355]
[1749202332401,0.07739191,2474.5,2474.2,1.2856]
[1749202332603,0.80791,2474.4,2474.2,2.09356]
[1749202332796,0.07739191,2474.5,2474.4,0.80791]
[1749202333699,0.07739191,2474.5,2474.4,2.09031]
[1749202335400,0.80791,2474.4,2474.3,4.40374593]
[1749202335596,0.80791,2474.4,2474.3,3.2078]
[1749202335998,1.43611,2474.4,2474.3,3.2078]
[1749202337901,0.80797,2474.2,2474.1,0.0060584]
[1749202338305,4.01577,2474.2,2474.1,0.0060584]
[1749202342112,0.8081,2473.8,2473.7,1.19573446]
[1749202342313,3.2078,2473.9,2473.6,0.6724]
[1749202342513,0.80814,2473.7,2473.6,1.48055]
[1749202342714,3.8504,2473.9,2473.6,0.6724]
[1749202342918,0.80813,2473.8,2473.6,1.48055]
[1749202343220,0.6426,2473.9,2473.7,0.80814]
[1749202343416,0.80807,2473.9,2473.8,0.8081]
[1749202343611,0.80807,2474.0,2473.8,0.8081]
[1749202344618,0.80804,2474.0,2473.9,0.80805]
[1749202345416,5.218,2474.1,2473.7,4.55481675]
[1749202345622,6.02603,2474.1,2474.0,0.80804]
[1749202345922,0.80803,2474.1,2474.0,0.80804]
[1749202346309,4.01579,2474.2,2474.1,0.808]
[1749202346519,0.80801,2474.1,2474.0,0.80801]
[1749202346712,0.80801,2474.1,2474.0,2.08881]
[1749202347816,0.80801,2474.1,2474.0,1.2808]
[1749202348020,0.80804,2474.0,2473.9,1.19626129]
[1749202348322,0.80814,2473.7,2473.6,1.85076129]
[1749202348524,0.80814,2473.7,2473.6,2.65893129]
[1749202349218,2.69145,2474.0,2473.6,2.65890129]
[1749202349518,0.8081,2473.8,2473.7,1.19626129]
[1749202349717,0.8081,2473.8,2473.7,2.00439129]
[1749202350215,0.6713,2474.0,2473.7,2.00439129]
[1749202350422,0.8081,2473.8,2473.7,2.00437129]
[1749202351125,2.78295,2474.0,2473.9,0.80807]
[1749202351327,0.6713,2474.0,2473.9,0.80807]
[1749202351524,0.80808,2473.9,2473.8,2.00434129]
[1749202351917,0.6713,2474.0,2473.9,0.80807]
[1749202352117,5.219,2474.1,2474.0,0.80804]
[1749202352320,5.219,2474.1,2474.0,2.00430129]
[1749202352521,0.6885,2474.3,2474.2,0.80797]
[1749202352717,0.07739191,2474.5,2474.4,0.80791]
[1749202352922,0.07739191,2474.5,2474.2,1.19626129]
[1749202352923,0.88529191,2474.5,2474.2,1.19626129]
[1749202353123,0.88529191,2474.5,2474.4,0.80791]
[1749202353724,0.07739191,2474.5,2474.4,0.80791]
[1749202354225,0.88526191,2474.5,2474.4,0.80791]
[1749202354424,0.88526191,2474.5,2474.3,1.19626129]
[1749202354928,0.88526191,2474.5,2474.4,0.80791]
[1749202355725,0.80791,2474.4,2474.3,1.19626129]
[1749202355925,0.80791,2474.4,2474.3,2.00420129]
[1749202356331,0.80791,2474.4,2474.3,1.19626129]
[1749202356534,1.36239191,2474.5,2474.2,1.19626129]
[1749202356729,0.80792,2474.4,2474.3,1.19626129]
[1749202357234,0.80792,2474.4,2474.3,2.00420129]
[1749202357431,0.80791,2474.4,2474.3,1.19626129]
[1749202357633,0.80791,2474.4,2474.3,2.00420129]
[1749202358036,0.80791,2474.4,2474.3,1.19626129]
[1749202358237,0.80791,2474.4,2474.3,0.80794]
[1749202360629,0.80794,2474.3,2474.2,2.00422129]
[1749202361034,0.80793,2474.4,2474.3,0.80793]
[1749202362031,0.80794,2474.3,2474.2,2.00421129]
[1749202362232,0.80794,2474.3,2474.2,0.80797]
[1749202362432,0.80793,2474.4,2474.3,0.80793]
[1749202362633,0.80797,2474.2,2474.1,1.19626129]
[1749202362839,3.98151,2474.3,2473.9,2.00432129]
[1749202363040,0.80804,2474.0,2473.9,2.00432129]
[1749202363231,0.80807,2473.9,2473.8,2.00434129]
[1749202363536,0.80806,2474.0,2473.9,0.80806]
[1749202363741,0.80807,2473.9,2473.8,2.00434129]
[1749202364243,0.80805,2474.0,2473.9,0.80805]
[1749202364436,0.80805,2474.0,2473.9,2.00431129]
[1749202364941,0.80806,2473.9,2473.8,2.00433129]
[1749202365137,0.80806,2474.0,2473.9,0.80806]
[1749202365334,0.80807,2473.9,2473.8,1.19626129]
[1749202365833,5.22793,2474.0,2473.6,1.19626129]
[1749202366038,0.80813,2473.7,2473.6,1.19626129]
[1749202366330,3.2078,2474.0,2473.7,0.80812]
[1749202366530,5.22791,2474.0,2473.6,2.00441129]
[1749202367042,0.80813,2473.7,2473.6,2.00441129]
[1749202367539,3.2078,2474.0,2473.7,0.80811]
[1749202367726,4.01584,2474.0,2473.9,0.80807]
[1749202367932,9.23384,2474.0,2473.9,0.80807]
[1749202368243,0.80807,2473.9,2473.8,2.00434129]
[1749202369241,9.23386,2474.0,2473.9,0.80807]
[1749202369443,4.01586,2474.0,2473.8,1.19626129]
[1749202369746,0.80807,2473.9,2473.8,0.80808]
[1749202369941,3.2078,2474.0,2473.7,2.89743932]
[1749202369942,3.2078,2474.0,2473.9,0.80807]
[1749202370249,0.80798,2474.2,2474.1,0.80799]
[1749202370449,0.80798,2474.2,2474.1,2.00688585]
[1749202371541,0.80798,2474.2,2474.1,1.19889585]
[1749202371732,8.4268,2474.3,2474.0,2.68142585]
[1749202371929,0.808,2474.1,2474.0,1.87339585]
[1749202372334,0.808,2474.1,2474.0,2.68142585]
[1749202372740,0.808,2474.1,2474.0,1.19889585]
[1749202374540,11.76055,2474.3,2474.1,0.80799]
[1749202374541,0.80799,2474.2,2474.1,0.80799]
[1749202374747,3.2078,2474.3,2474.2,0.80796]
[1749202374936,3.2078,2474.3,2474.2,2.00700575]
[1749202375645,4.01573,2474.3,2474.2,2.00700575]
[1749202375940,4.01573,2474.3,2474.2,1.19904575]
[1749202376138,4.01575,2474.3,2474.2,0.80796]
[1749202376339,3.2078,2474.3,2474.2,2.00682627]
[1749202376740,4.01573,2474.3,2474.2,2.00682627]
[1749202377947,0.80793,2474.3,2474.2,2.00682627]
[1749202378644,0.80793,2474.3,2474.2,1.19886627]
[1749202379245,0.80793,2474.3,2474.2,2.00683627]
[1749202380340,0.80793,2474.3,2474.2,1.19886627]
[1749202380541,0.80793,2474.3,2474.2,2.00680627]
[1749202380843,4.0217384,2474.5,2474.4,0.8079]
[1749202381040,9.2097384,2474.5,2474.4,0.8079]
[1749202381235,4.0217384,2474.5,2474.4,0.8079]
[1749202381440,0.8079,2474.4,2474.3,1.19889083]
[1749202381649,0.8079,2474.4,2474.3,2.00683083]
[1749202381945,0.8079,2474.4,2474.3,1.19889083]
[1749202382344,0.8079,2474.4,2474.3,2.00683083]
[1749202382742,0.8079,2474.4,2474.3,1.19889083]
[1749202383045,0.8079,2474.4,2474.3,2.00682083]
[1749202383441,0.8079,2474.4,2474.3,1.19889083]
[1749202385541,0.8079,2474.4,2474.3,2.00683083]
[1749202385747,0.8079,2474.4,2474.3,1.19889083]
[1749202386545,0.8079,2474.4,2474.3,2.00683083]
[1749202387248,0.8079,2474.4,2474.3,0.80794]
[1749202387450,0.8079,2474.4,2474.3,2.00622477]
[1749202387951,0.8079,2474.4,2474.3,1.19828477]
[1749202389453,0.8079,2474.4,2474.3,2.00621477]
[1749202389753,0.8079,2474.4,2474.3,1.19828477]
[1749202390052,0.80797,2474.2,2474.1,1.19828477]
[1749202390247,0.808,2474.1,2474.0,1.19828477]
[1749202390444,2.0929,2474.1,2474.0,1.19828477]
[1749202390844,0.80803,2474.0,2473.9,1.19828477]
[1749202391149,0.8081,2473.8,2473.7,1.19828477]
[1749202392250,3.2078,2474.2,2474.0,0.80801]
[1749202392452,0.808,2474.1,2474.0,2.00615798]
[1749202392647,0.80798,2474.2,2474.1,0.80799]
[1749202392846,6.06829351,2474.3,2474.1,2.00611798]
[1749202393153,0.80797,2474.2,2474.1,2.40550064]
[1749202393345,0.07133351,2474.3,2474.1,2.40550064]
[1749202393346,0.87929351,2474.3,2474.1,2.40550064]
[1749202393550,0.87929351,2474.3,2474.2,1.19798074]
[1749202393752,0.07133351,2474.3,2474.2,2.68155074]
[1749202393951,0.07133351,2474.3,2474.2,3.08110064]
[1749202394350,0.07133351,2474.3,2474.2,4.40680064]
[1749202395149,0.87926351,2474.3,2474.2,4.40680064]
[1749202395454,0.07133351,2474.3,2474.2,4.40680064]
[1749202397556,0.07133351,2474.3,2474.2,2.80927]
[1749202398358,0.07133351,2474.3,2474.2,4.40671058]
[1749202399656,0.87926351,2474.3,2474.2,4.40671058]
[1749202399856,0.07133351,2474.3,2474.2,4.40671058]
[1749202405058,0.07133351,2474.3,2474.2,3.08101058]
[1749202405255,0.07133351,2474.3,2474.2,1.48357]
[1749202408360,0.07133351,2474.3,2474.2,3.08101058]
[1749202410559,0.07133351,2474.3,2474.2,3.88002899]
[1749202414077,0.87926351,2474.3,2474.2,1.48357]
[1749202414467,0.07133351,2474.3,2474.2,1.48357]
[1749202414866,0.87926351,2474.3,2474.2,1.48357]
[1749202415371,0.07133351,2474.3,2474.2,1.48357]
[1749202417469,0.07133351,2474.3,2474.2,0.80797]
[1749202417971,0.87926351,2474.3,2474.2,0.80797]
[1749202418176,0.07133351,2474.3,2474.2,0.80797]
[1749202418564,0.07133351,2474.3,2474.2,2.40526245]
[1749202422371,0.07133351,2474.3,2474.2,0.80797]
[1749202423067,0.07133351,2474.3,2474.2,3.20442899]
[1749202423671,0.87926351,2474.3,2474.2,2.39645899]
[1749202423875,0.87926351,2474.3,2474.2,0.80797]
[1749202424175,0.87926351,2474.3,2474.2,3.20442899]
[1749202424373,0.87926351,2474.3,2474.2,0.80797]
[1749202424777,0.87926351,2474.3,2474.2,3.20442899]
[1749202425168,0.87926351,2474.3,2474.2,0.80797]
[1749202425768,0.87926351,2474.3,2474.2,3.20442899]
[1749202428176,0.07133351,2474.3,2474.2,3.20442899]
[1749202428875,0.07133351,2474.3,2474.2,0.80797]
[1749202429466,0.07133351,2474.3,2474.2,2.09987]
[1749202433176,4.01553,2475.0,2474.9,0.80774]
[1749202433478,3.2078,2475.0,2474.9,2.4072019]
[1749202433681,4.01551,2475.0,2474.9,2.4072019]
[1749202433875,3.2078,2475.0,2474.9,0.80774]
[1749202434280,4.01551,2475.0,2474.9,0.80774]
[1749202434473,4.01551,2475.0,2474.9,2.40527641]
[1749202435680,3.2078,2475.0,2474.9,2.40527641]
[1749202436584,0.6304,2475.1,2475.0,0.80771]
[1749202436782,0.6304,2475.1,2475.0,2.40524641]
[1749202437479,0.6304,2475.1,2475.0,0.80771]
[1749202438183,0.0060584,2475.2,2475.1,0.80767]
[1749202438479,0.0060584,2475.2,2475.1,2.00371398]
[1749202438679,0.0060584,2475.2,2475.1,0.80767]
[1749202439475,0.0060584,2475.2,2475.1,2.00327461]
[1749202440170,0.0060584,2475.2,2475.1,5.21107461]
[1749202440376,1.48449,2475.7,2475.5,0.80752]
[1749202440580,0.80751,2475.6,2475.5,0.80752]
[1749202440883,2.05,2475.7,2475.6,0.80751]
[1749202441083,3.2078,2476.5,2475.7,0.80748]
[1749202441275,0.6830584,2476.3,2476.2,0.80731]
[1749202441581,0.6830584,2476.3,2476.2,2.00136583]
[1749202441778,0.6830584,2476.3,2476.2,1.19405583]
[1749202441975,0.6830584,2476.3,2476.1,1.85385583]
[1749202441976,0.0060584,2476.3,2476.1,1.85385583]
[1749202442681,0.0060584,2476.3,2476.2,1.82745583]
[1749202442984,0.0060584,2476.3,2476.2,4.00096583]
[1749202443277,0.677,2476.7,2476.3,0.80727]
[1749202443476,0.677,2476.7,2476.4,2.17344]
[1749202443776,0.677,2476.7,2476.3,1.1897234]
[1749202443985,0.80721,2476.6,2476.3,5.166]
[1749202444171,0.80719,2476.6,2476.3,6.3557234]
[1749202444377,0.6830584,2476.7,2476.3,5.97326]
[1749202444579,0.0060584,2476.7,2476.3,6.4711]
[1749202444777,0.0060584,2476.7,2476.6,0.80718]
[1749202445186,0.0060584,2476.7,2476.6,2.11228]
[1749202445381,5.166,2477.6,2476.6,6.3051]
[1749202445580,0.80691,2477.5,2477.1,0.807]
[1749202445785,0.80691,2477.5,2477.1,7.2781]
[1749202445983,5.8433,2477.8,2477.1,6.4711]
[1749202446278,0.80702,2477.1,2477.0,3.2078]
[1749202446481,0.80702,2477.1,2476.7,0.6946]
[1749202446482,0.80712,2476.8,2476.7,0.6946]
[1749202447286,0.80715,2476.8,2476.7,0.6946]
[1749202448081,0.80725,2476.5,2476.4,32.8078]
[1749202448274,0.80735,2476.2,2476.1,3.2078]
[1749202448479,0.80735,2476.2,2476.1,8.3728]
[1749202449688,0.80738,2476.1,2476.0,0.6507584]
[1749202449886,0.80738,2476.1,2476.0,5.8147584]
[1749202450075,0.80738,2476.1,2476.0,5.1700584]
[1749202450276,0.80738,2476.1,2476.0,0.0060584]
[1749202451694,9.01518,2476.1,2476.0,8.4e-06]
[1749202451888,14.17918,2476.1,2476.0,8.4e-06]
[1749202452188,14.17918,2476.1,2475.3,5.164]
[1749202452189,0.80771,2475.1,2475.0,5.164]
[1749202454795,2.0185,2476.1,2475.1,2.01924]
[1749202454996,0.80748,2475.8,2475.7,3.2078]
[1749202456299,0.80748,2475.8,2475.7,4.5202]
[1749202456499,0.80748,2475.8,2475.7,8.3728]